bitfinex/quotes_ETHUSD_20240729
["timestamp","ask_amount","ask_price","bid_price","bid_amount"]
[1722262632130,0.550091,3337.7,3337.1,2.99655]
[1722262632331,2.2773,3337.8,3337.3,2.99638]
[1722262632639,2.2773,3337.8,3337.6,2.99614]
[1722262632848,2.2773,3337.8,3337.6,2.9961]
[1722262633004,2.2773,3337.8,3337.6,5.9922]
[1722262633207,2.2773,3337.8,3337.7,2.99607]
[1722262633741,2.2773,3337.8,3337.3,0.05991796]
[1722262633931,2.2773,3337.8,3337.3,3.41449976]
[1722262634132,2.2773,3337.8,3337.4,2.99631]
[1722262634440,2.99608,3337.7,3336.9,5.98678]
[1722262635042,2.99635,3337.4,3336.9,2.99]
[1722262635223,2.4171,3337.2,3336.4,2.99723]
[1722262635404,2.4171,3337.2,3337.0,0.008]
[1722262635405,2.99661,3337.1,3337.0,0.008]
[1722262635591,4.52218366,3337.1,3337.0,0.008]
[1722262636136,1.52557366,3337.1,3337.0,0.008]
[1722262636896,2.4171,3337.2,3337.0,0.008]
[1722262638245,1.52548469,3337.1,3337.0,0.008]
[1722262638826,7.52209469,3337.1,3337.0,0.008]
[1722262639322,7.52225513,3337.1,3337.0,0.008]
[1722262639827,12.85206513,3337.1,3337.0,0.008]
[1722262640034,17.81018054,3337.1,3337.0,0.008]
[1722262640248,22.80705313,3337.1,3337.0,0.008]
[1722262640418,21.36336052,3337.1,3337.0,0.008]
[1722262640617,21.91336052,3337.1,3337.0,0.008]
[1722262641007,2.4699,3336.0,3335.2,2.644]
[1722262641453,2.4699,3336.0,3335.3,2.99822]
[1722262641746,2.4699,3336.0,3335.2,2.644]
[1722262642121,2.4699,3336.0,3335.2,2.636]
[1722262642548,2.4699,3336.0,3335.2,5.63426]
[1722262642710,2.4699,3336.0,3335.4,2.99812]
[1722262642910,2.4699,3336.0,3335.5,2.99804]
[1722262643113,2.3187,3336.5,3335.6,2.70395548]
[1722262643462,2.3187,3337.1,3336.3,2.99728]
[1722262643614,2.9967,3337.0,3336.1,2.99743]
[1722262643813,0.35751342,3337.0,3336.1,2.99743]
[1722262644153,0.35751342,3337.0,3336.0,2.644]
[1722262644328,2.99717,3336.5,3335.6,2.644]
[1722262644666,5.30661,3336.4,3335.5,2.99804]
[1722262644816,5.3093,3336.4,3335.5,2.99804]
[1722262645014,2.99738,3336.3,3335.3,5.99635]
[1722262645353,2.99738,3336.3,3335.2,2.644]
[1722262645354,2.99766,3336.0,3335.2,2.644]
[1722262645512,3.0,3336.3,3335.2,2.644]
[1722262645712,2.3093,3336.4,3336.0,2.99757]
[1722262646152,2.3093,3336.4,3336.1,2.99749]
[1722262646320,2.3093,3336.4,3336.2,2.99736]
[1722262646522,5.33,3336.9,3336.4,2.99723]
[1722262646723,2.33,3336.9,3336.4,3.0571124]
[1722262646925,2.33,3336.9,3336.4,2.99717]
[1722262647127,0.008,3337.0,3336.7,2.99696]
[1722262647323,0.008,3337.0,3336.5,0.05993783]
[1722262647741,0.008,3337.0,3336.9,2.99679]
[1722262649319,0.008,3337.0,3336.9,6.05351065]
[1722262650167,0.008,3337.0,3336.4,2.644]
[1722262650458,2.3338,3336.9,3336.1,0.05994113]
[1722262650761,0.008,3337.0,3336.4,2.644]
[1722262650973,2.3338,3337.3,3337.0,2.99663]
[1722262651117,2.3338,3337.3,3337.1,2.99659]
[1722262651319,2.3338,3337.3,3336.4,8.63836]
[1722262651548,2.3338,3337.3,3336.4,2.644]
[1722262651732,2.99652,3337.2,3336.3,2.9973]
[1722262652046,2.866819,3337.3,3336.8,2.99683]
[1722262652361,2.3338,3337.3,3336.6,2.99705]
[1722262652517,2.3338,3337.3,3336.6,2.99698]
[1722262653358,2.3338,3337.3,3336.4,5.70109767]
[1722262653563,2.99662,3337.1,3336.2,2.99738]
[1722262653735,2.99662,3337.1,3336.3,2.99732]
[1722262653933,0.833007,3337.2,3336.4,2.99724]
[1722262654556,3.829527,3337.2,3336.4,2.99724]
[1722262654767,0.833007,3337.2,3336.4,2.99717]
[1722262654925,2.3338,3337.3,3336.6,2.99703]
[1722262655153,0.012,3337.0,3336.6,2.99703]
[1722262655677,0.012,3337.0,3336.0,2.644]
[1722262655880,0.012,3337.0,3336.3,2.99729]
[1722262656186,0.012,3337.0,3336.4,2.99723]
[1722262656345,0.012,3337.0,3336.7,2.99692]
[1722262656541,0.012,3337.0,3336.4,2.9972]
[1722262657088,0.012,3337.0,3336.2,2.99735]
[1722262657586,2.99689,3336.8,3335.9,2.99763]
[1722262657739,2.738089,3336.7,3335.9,2.99763]
[1722262658164,2.738089,3336.7,3336.1,2.99747]
[1722262658381,2.738089,3336.7,3335.9,2.99761]
[1722262658581,2.738089,3336.7,3336.0,2.99758]
[1722262659089,2.738089,3336.7,3336.1,2.9975]
[1722262659378,2.738089,3336.7,3336.0,2.9976]
[1722262659379,2.4372,3336.7,3336.0,2.9976]
[1722262659577,2.4372,3336.7,3335.9,2.99763]
[1722262659782,5.43418,3336.7,3335.9,2.99763]
[1722262659981,2.4372,3336.7,3336.0,2.99758]
[1722262660185,2.981818,3336.7,3336.1,2.99751]
[1722262660689,2.99714,3336.6,3335.7,2.99782]
[1722262661011,2.99716,3336.5,3335.5,2.99797]
[1722262661292,0.8975998,3336.4,3335.7,2.99779]
[1722262661446,3.0,3336.6,3335.8,2.9977]
[1722262661768,3.0,3336.6,3335.3,2.99]
[1722262661769,2.99715,3336.5,3335.6,2.99788]
[1722262661971,2.99725,3336.4,3335.3,5.98818]
[1722262662207,2.99725,3336.4,3335.5,2.99803]
[1722262662208,2.99731,3336.4,3335.5,2.99803]
[1722262662495,3.896831,3336.3,3335.5,2.99803]
[1722262662791,2.99751,3336.1,3335.3,2.99]
[1722262662993,0.6299961,3336.0,3335.3,2.99]
[1722262663177,0.6299961,3336.0,3335.4,2.99813]
[1722262663378,0.6299961,3336.0,3335.3,2.99]
[1722262663579,3.0,3336.1,3335.3,2.99]
[1722262663752,2.403,3336.2,3335.6,2.99788]
[1722262664893,2.403,3336.2,3336.1,2.99751]
[1722262665101,2.379,3336.9,3336.2,2.99736]
[1722262665398,2.379,3336.9,3336.1,2.99749]
[1722262665399,0.538761,3336.8,3336.1,2.99749]
[1722262665599,0.538761,3336.8,3335.9,2.99763]
[1722262665600,3.535661,3336.8,3335.9,2.99763]
[1722262666099,3.535661,3336.8,3335.6,2.644]
[1722262666100,0.538761,3336.8,3336.1,2.99751]
[1722262666274,0.538761,3336.8,3336.2,2.99739]
[1722262666482,0.538761,3336.8,3336.0,2.99756]
[1722262666653,0.5926601,3336.7,3336.1,2.9975]
[1722262667081,0.5926601,3336.7,3336.0,2.99759]
[1722262667288,0.5926601,3336.7,3335.8,2.99774]
[1722262667503,2.99689,3336.8,3336.0,2.99755]
[1722262667694,1.0379598,3336.7,3335.9,2.99769]
[1722262667902,2.99697,3336.7,3335.8,2.99774]
[1722262668049,1.03799886,3336.6,3335.8,2.9977]
[1722262668250,0.94107689,3336.6,3335.9,2.99768]
[1722262668555,0.94107689,3336.6,3335.7,2.99779]
[1722262668769,5.35641,3336.5,3335.5,2.99796]
[1722262668970,5.35641,3336.5,3335.6,2.99793]
[1722262669191,2.3592,3336.5,3336.0,2.99759]
[1722262669394,2.3592,3336.5,3335.6,2.644]
[1722262669568,2.3592,3336.5,3336.0,2.99756]
[1722262670193,2.3592,3336.5,3336.0,2.99754]
[1722262670501,2.3592,3336.5,3336.1,2.99744]
[1722262670896,2.3592,3336.5,3335.9,2.99762]
[1722262671069,2.3592,3336.5,3336.0,2.99758]
[1722262671273,2.3592,3336.5,3336.0,2.99756]
[1722262671457,2.3592,3336.5,3336.0,2.99753]
[1722262671798,2.3592,3336.5,3335.9,2.99765]
[1722262671996,2.3592,3336.5,3335.9,2.99763]
[1722262672358,6.491661,3336.5,3335.5,2.99804]
[1722262672655,3.494511,3336.5,3335.7,2.99778]
[1722262672862,6.491711,3336.5,3335.7,2.99778]
[1722262673059,3.494511,3336.5,3335.7,5.99558]
[1722262673296,3.494511,3336.5,3335.8,2.99771]
[1722262673497,3.6464061,3336.4,3335.6,2.99794]
[1722262673697,2.99725,3336.4,3335.6,2.99794]
[1722262673858,3.494511,3336.5,3335.6,2.99787]
[1722262674056,3.494511,3336.5,3335.7,2.99781]
[1722262674257,3.494511,3336.5,3335.3,2.99]
[1722262674503,3.494511,3336.5,3335.8,2.99772]
[1722262675201,1.52590542,3336.4,3335.9,2.99767]
[1722262675400,3.494511,3336.5,3336.0,2.99759]
[1722262675788,2.3592,3336.5,3336.0,2.99759]
[1722262676102,2.3592,3336.5,3335.9,2.99768]
[1722262676496,2.3592,3336.5,3335.8,2.99772]
[1722262676694,4.52309156,3336.4,3335.6,2.99791]
[1722262676989,4.52324156,3336.3,3335.4,2.99811]
[1722262677190,0.98796916,3336.2,3335.4,2.99811]
[1722262677513,0.98796916,3336.2,3335.3,2.99]
[1722262677723,2.99771,3335.9,3335.0,0.012]
[1722262677869,2.99796,3335.6,3335.0,0.012]
[1722262678074,4.52439318,3335.5,3335.0,0.012]
[1722262678361,8.56109824,3335.4,3335.0,0.012]
[1722262678567,3.90908318,3335.3,3335.0,0.012]
[1722262678803,1.52628318,3335.2,3335.0,0.012]
[1722262679968,2.3828,3335.3,3335.0,0.012]
[1722262680402,1.52643733,3335.2,3335.0,0.012]
[1722262682783,1.98040799,3335.2,3335.0,0.012]
[1722262682989,1.52643733,3335.1,3335.0,0.012]
[1722262683519,1.52643733,3335.2,3335.0,0.012]
[1722262683718,8.45042,3335.1,3335.0,0.012]
[1722262683904,17.22805985,3335.1,3335.0,0.012]
[1722262684101,17.22805985,3335.1,3333.2,2.644]
[1722262684102,29.3212915,3335.1,3333.2,2.644]
[1722262684288,2.3318,3333.9,3333.1,3.00014]
[1722262684487,2.3318,3333.9,3332.9,3.00031]
[1722262684691,5.33134,3333.9,3332.9,3.00031]
[1722262684891,4.52666525,3333.8,3332.9,3.864794]
[1722262685097,0.92285827,3334.5,3333.2,2.644]
[1722262685311,2.3318,3334.4,3333.9,2.9994]
[1722262685611,2.3318,3334.4,3333.9,2.99942]
[1722262685816,2.3318,3335.0,3334.0,0.05998425]
[1722262685983,1.52672703,3334.9,3334.1,2.9993]
[1722262686179,7.52537703,3334.9,3334.1,0.29993]
[1722262686469,4.52543703,3334.8,3333.9,2.99947]
[1722262686739,3.0,3334.9,3334.0,0.05998135]
[1722262686887,3.0,3334.9,3334.2,2.99914]
[1722262687431,2.3318,3335.0,3334.3,0.0599805]
[1722262687782,2.3318,3335.0,3334.0,2.644]
[1722262687982,2.3318,3335.0,3334.3,2.99911]
[1722262688224,2.3318,3335.0,3334.3,2.99906]
[1722262688426,2.3318,3335.0,3334.5,2.99889]
[1722262688630,2.3939,3335.6,3334.8,2.99865]
[1722262688950,3.963857,3335.6,3334.8,2.99862]
[1722262689114,2.3939,3335.6,3334.9,2.99858]
[1722262689883,2.3939,3335.6,3334.8,2.99862]
[1722262690089,8.39187,3335.6,3334.8,2.98662]
[1722262690315,8.39187,3335.6,3334.4,2.99896]
[1722262690498,0.839187,3335.5,3334.6,2.9988]
[1722262690698,3.839187,3335.5,3334.6,2.99878]
[1722262690931,3.0,3335.5,3334.6,2.99882]
[1722262691140,2.3939,3335.6,3334.6,3.58797168]
[1722262691287,2.3939,3335.6,3334.8,2.99861]
[1722262691493,2.3939,3335.6,3335.1,2.99835]
[1722262691807,2.3939,3335.6,3334.9,0.35982413]
[1722262692132,2.3939,3335.6,3335.0,0.05996313]
[1722262692521,2.3939,3335.6,3335.2,2.99824]
[1722262692834,2.3939,3335.6,3335.4,2.99813]
[1722262692989,2.3158,3336.0,3335.4,2.99813]
[1722262693193,2.3158,3336.0,3335.6,2.99795]
[1722262693688,0.012,3336.0,3335.6,2.9979]
[1722262693888,0.012,3336.0,3335.8,2.99777]
[1722262694088,0.012,3336.0,3335.9,3.05764375]
[1722262694635,0.012,3336.0,3335.9,0.05995375]
[1722262694937,0.012,3336.0,3335.0,2.99848]
[1722262695138,0.012,3336.0,3335.2,2.99825]
[1722262695434,2.3097,3335.9,3335.4,2.99806]
[1722262695633,2.3097,3335.9,3335.2,2.99832]
[1722262695936,2.3097,3335.9,3335.6,2.99792]
[1722262696095,2.3097,3335.9,3335.5,2.99803]
[1722262696619,2.3097,3335.9,3335.6,2.99795]
[1722262696932,2.3097,3335.9,3335.4,2.99809]
[1722262697233,2.3097,3335.9,3335.4,0.63260981]
[1722262697442,0.012,3336.0,3335.7,2.99781]
[1722262697592,0.012,3336.0,3335.7,2.99782]
[1722262697788,0.012,3336.0,3335.5,2.99799]
[1722262698104,0.012,3336.0,3335.4,3.63066981]
[1722262698301,0.012,3336.0,3335.6,2.99794]
[1722262698523,0.012,3336.0,3335.7,2.99781]
[1722262698735,0.012,3336.0,3335.6,2.99794]
[1722262699213,0.012,3336.0,3335.8,2.99775]
[1722262699418,0.012,3336.0,3335.5,2.99803]
[1722262699629,0.012,3336.0,3335.2,3.3280981]
[1722262699812,0.012,3336.0,3335.5,2.99803]
[1722262700212,0.012,3336.0,3335.6,2.99795]
[1722262700814,0.012,3336.0,3335.7,2.99785]
[1722262701813,2.4821,3336.3,3335.7,2.99786]
[1722262702305,2.4821,3336.3,3335.7,5.99566]
[1722262702506,2.4821,3336.3,3335.8,2.99772]
[1722262702819,2.4821,3336.3,3335.8,2.9977]
[1722262703020,2.4821,3336.3,3335.8,3.35742308]
[1722262703222,2.4821,3336.3,3335.8,2.9977]
[1722262703423,2.4821,3336.3,3335.8,2.99775]
[1722262703633,2.4821,3336.3,3335.4,2.99809]
[1722262704159,2.4821,3336.3,3335.2,0.3298181]
[1722262704359,2.4821,3336.3,3335.6,2.99787]
[1722262704511,3.030023,3336.3,3335.7,2.99786]
[1722262704720,2.4821,3336.3,3335.2,0.3298181]
[1722262704914,2.4821,3336.3,3335.8,2.99778]
[1722262705114,2.4821,3336.3,3335.6,2.99788]
[1722262705625,2.4821,3336.3,3335.5,2.99802]
[1722262705832,2.4821,3336.3,3335.8,2.99771]
[1722262706060,2.4821,3336.3,3335.2,3.3281081]
[1722262706352,2.4821,3336.3,3335.9,2.99766]
[1722262706731,2.4821,3336.3,3336.0,2.99758]
[1722262707231,2.4821,3336.3,3335.9,2.99768]
[1722262708061,2.4821,3336.3,3335.9,2.99762]
[1722262708360,2.4821,3336.3,3336.0,2.99759]
[1722262708732,2.3331,3336.7,3336.0,2.99759]
[1722262709070,2.3331,3336.7,3336.3,2.99729]
[1722262709226,2.3331,3336.7,3335.9,2.99764]
[1722262709423,2.3331,3336.7,3336.1,2.99746]
[1722262709669,2.3331,3336.7,3336.2,2.9974]
[1722262710158,2.3331,3336.7,3336.1,2.99749]
[1722262710315,2.3331,3336.7,3336.0,2.99752]
[1722262710517,2.3331,3336.7,3336.3,2.99725]
[1722262710963,3.0,3336.9,3336.6,2.99706]
[1722262711170,0.012,3337.0,3336.6,2.99706]
[1722262711456,0.012,3337.0,3336.7,2.99692]
[1722262711816,0.012,3337.0,3336.5,0.05993676]
[1722262711817,0.012,3337.0,3336.5,3.05699676]
[1722262712016,0.012,3337.0,3336.6,2.99705]
[1722262712460,0.012,3337.0,3336.9,5.99358]
[1722262712615,0.012,3337.0,3336.9,2.99679]
[1722262713019,0.012,3337.0,3336.8,0.05993029]
[1722262713020,0.012,3337.0,3336.7,5.9938]
[1722262713342,0.012,3337.0,3336.8,0.05993029]
[1722262713557,0.012,3337.0,3336.3,2.99728]
[1722262713752,0.012,3337.0,3336.4,0.564028]
[1722262714063,0.012,3337.0,3336.7,2.99689]
[1722262714373,0.012,3337.0,3336.8,2.99686]
[1722262714913,0.012,3337.0,3336.9,2.99679]
[1722262715342,0.012,3337.0,3336.7,2.99697]
[1722262715686,0.012,3337.0,3336.8,2.99687]
[1722262715844,0.012,3337.0,3336.9,2.99679]
[1722262716039,0.012,3337.0,3336.7,3.69717814]
[1722262716246,0.012,3337.0,3336.9,2.99679]
[1722262716644,0.012,3337.0,3336.8,2.99687]
[1722262716845,0.012,3337.0,3336.8,3.93058781]
[1722262717082,0.012,3337.0,3336.9,2.99679]
[1722262717582,0.012,3337.0,3336.8,3.93058781]
[1722262717945,0.012,3337.0,3336.9,2.99679]
[1722262719648,0.012,3337.0,3336.8,0.93371781]
[1722262719844,0.012,3337.0,3336.9,3.65415378]
[1722262720096,0.012,3337.0,3336.9,0.65736378]
[1722262720390,0.012,3337.0,3336.9,6.71087251]
[1722262720607,2.3862,3338.1,3337.3,2.99637]
[1722262720748,2.3862,3338.1,3337.5,2.99618]
[1722262721346,2.3862,3338.1,3337.6,2.99615]
[1722262721800,2.3862,3338.1,3337.7,2.99606]
[1722262722177,2.3862,3338.1,3337.6,3.05606825]
[1722262722521,3.224365,3338.1,3336.7,2.643]
[1722262722662,2.2682,3337.5,3336.7,2.99691]
[1722262722871,2.99666,3337.1,3336.2,2.99736]
[1722262723086,5.2682,3337.5,3335.9,2.643]
[1722262723087,0.299666,3337.0,3336.5,2.99713]
[1722262723403,2.9965,3337.3,3336.4,2.99722]
[1722262723615,2.9965,3337.3,3336.5,2.99711]
[1722262723775,0.008,3337.0,3336.6,3.05698841]
[1722262723979,0.008,3337.0,3336.8,2.99682]
[1722262724199,0.008,3337.0,3336.9,0.05993164]
[1722262724532,0.008,3337.0,3336.6,2.99702]
[1722262725085,0.008,3337.0,3336.7,2.99697]
[1722262725324,0.008,3337.0,3336.6,2.99697]
[1722262726232,0.008,3337.0,3336.6,5.99395]
[1722262726538,0.008,3337.0,3336.7,5.69988213]
[1722262726681,0.008,3337.0,3336.8,2.99687]
[1722262726886,0.008,3337.0,3336.9,5.99358]
[1722262727627,0.008,3337.0,3336.9,9.54037]
[1722262728008,0.008,3337.0,3336.9,6.54358]
[1722262728331,0.008,3337.0,3336.9,10.8450935]
[1722262728712,0.008,3337.0,3336.9,7.8483035]
[1722262729326,0.008,3337.0,3336.9,13.8450935]
[1722262731220,0.008,3337.0,3336.9,19.2458835]
[1722262731417,0.008,3337.0,3336.9,16.2490935]
[1722262731618,0.008,3337.0,3336.9,19.2458835]
[1722262731825,2.3522,3338.3,3338.0,2.99573]
[1722262731998,2.3771,3338.8,3338.1,2.9957]
[1722262732833,2.3771,3338.8,3338.0,0.05990933]
[1722262733041,2.3771,3338.8,3338.2,0.05990773]
[1722262733192,2.3771,3338.8,3338.0,0.56987293]
[1722262733394,2.3771,3338.8,3337.7,2.643]
[1722262733395,2.99537,3338.5,3337.7,2.643]
[1722262733712,2.99551,3338.4,3337.6,2.99615]
[1722262734036,2.99551,3338.4,3337.1,2.643]
[1722262734037,2.99548,3338.4,3337.1,2.643]
[1722262734244,2.99534,3338.6,3337.7,5.99205]
[1722262734413,2.99534,3338.6,3337.8,2.99593]
[1722262734601,3.0,3338.5,3337.8,2.99593]
[1722262734806,4.136754,3338.5,3337.8,2.99593]
[1722262735058,5.99536,3338.5,3337.7,2.99605]
[1722262735226,5.99536,3338.5,3337.7,2.99607]
[1722262735540,5.99536,3338.5,3337.6,2.643]
[1722262735541,2.99548,3338.4,3337.6,2.643]
[1722262735704,5.99539,3338.5,3337.3,2.99636]
[1722262735904,2.99552,3338.4,3337.6,2.99615]
[1722262736142,3.0,3338.5,3337.7,0.05991311]
[1722262736300,2.3771,3338.7,3337.7,0.05991311]
[1722262736500,2.3771,3338.7,3337.8,2.99591]
[1722262736714,2.3771,3338.7,3337.9,3.05573005]
[1722262736933,2.3771,3338.7,3338.2,2.99561]
[1722262737127,2.3771,3338.7,3337.6,2.942615]
[1722262737128,2.3771,3338.7,3338.3,3.05541376]
[1722262737350,2.3771,3338.7,3338.3,0.05990376]
[1722262738434,2.3771,3338.7,3338.3,3.92481514]
[1722262738735,2.3771,3338.7,3338.4,2.99543]
[1722262739053,2.3771,3338.7,3338.5,0.05990318]
[1722262739213,0.012,3339.0,3338.5,2.99527]
[1722262739415,0.012,3339.0,3338.3,3.86489138]
[1722262739833,0.012,3339.0,3338.1,2.99564]
[1722262740038,0.012,3339.0,3338.3,2.99553]
[1722262740235,0.012,3339.0,3338.1,2.99566]
[1722262740440,3.00697,3339.0,3338.2,2.99562]
[1722262740938,0.012,3339.0,3338.3,3.05543169]
[1722262741150,0.012,3339.0,3338.5,2.99529]
[1722262741318,0.012,3339.0,3338.6,0.05989605]
[1722262741504,0.012,3339.0,3338.4,0.30554317]
[1722262741730,3.00696,3339.0,3338.2,2.9956]
[1722262741931,0.012,3339.0,3338.3,2.99553]
[1722262742132,0.012,3339.0,3338.7,2.9951]
[1722262742465,0.012,3339.0,3338.8,0.05989469]
[1722262742959,2.5159371,3339.5,3338.8,3.05496469]
[1722262743486,2.5159371,3339.5,3338.9,0.05989293]
[1722262744273,2.5159371,3339.5,3338.9,0.30549729]
[1722262744436,0.1468371,3339.5,3339.0,0.05988971]
[1722262744638,0.1468371,3339.5,3339.1,2.99473]
[1722262744850,0.1468371,3339.5,3339.2,3.05456606]
[1722262745132,0.1468371,3339.5,3339.3,0.05988605]
[1722262745938,0.1468371,3339.5,3339.4,2.99454]
[1722262746246,0.1468371,3339.5,3339.4,3.05442384]
[1722262746749,0.1468371,3339.5,3338.8,2.4766]
[1722262746750,2.99463,3339.4,3338.6,2.99526]
[1722262746952,2.4913,3339.3,3338.1,8.63868]
[1722262747165,2.4913,3339.3,3338.7,2.99517]
[1722262747483,2.4913,3339.3,3338.8,0.05989493]
[1722262747783,2.4913,3339.3,3338.9,2.99499]
[1722262747940,2.4913,3339.3,3338.9,0.05989268]
[1722262748143,2.4913,3339.3,3338.9,3.05487268]
[1722262748369,2.4913,3339.3,3338.9,0.60499027]
[1722262748552,2.4913,3339.3,3338.8,2.99501]
[1722262748752,2.4913,3339.3,3338.9,2.99494]
[1722262749280,2.4913,3339.3,3338.6,2.99522]
[1722262749480,2.4913,3339.3,3338.2,2.9956]
[1722262749481,2.99497,3339.0,3338.2,2.9956]
[1722262749667,2.4913,3339.3,3338.1,2.643]
[1722262749840,2.4913,3339.3,3338.5,2.643]
[1722262750243,2.4913,3339.3,3338.3,2.99548]
[1722262750454,5.48601,3339.3,3338.2,3.26088]
[1722262750652,5.48594,3339.3,3338.5,2.9953]
[1722262750869,2.4913,3339.3,3338.6,2.99526]
[1722262751069,5.4913,3339.3,3338.6,2.99526]
[1722262751886,0.1468371,3339.5,3338.6,0.599068]
[1722262752055,2.4222,3339.4,3338.6,2.99518]
[1722262752257,2.99469,3339.3,3338.5,2.643]
[1722262752461,2.4222,3339.4,3338.6,0.0598959]
[1722262752772,2.4222,3339.4,3338.7,0.27028959]
[1722262753090,2.4222,3339.4,3339.0,2.9949]
[1722262753447,2.4222,3339.4,3339.1,2.99481]
[1722262754002,0.1468371,3339.5,3339.4,2.99454]
[1722262754143,0.1468371,3339.5,3339.4,3.05442396]
[1722262754347,0.1468371,3339.5,3339.4,6.65386936]
[1722262754772,0.1468371,3339.5,3339.4,0.66478936]
[1722262754971,0.1468371,3339.5,3339.2,3.05460351]
[1722262755245,0.1468371,3339.5,3339.4,2.99454]
[1722262755676,0.1468371,3339.5,3339.4,5.98908]
[1722262755879,0.1468371,3339.5,3339.4,2.99454]
[1722262756081,0.1468371,3339.5,3339.4,3.05442119]
[1722262756283,0.1468371,3339.5,3339.4,0.66479231]
[1722262756692,0.1468371,3339.5,3339.4,3.65933231]
[1722262757254,0.1468371,3339.5,3339.4,6.65387231]
[1722262758344,0.1468371,3339.5,3339.4,9.64841231]
[1722262759001,0.1468371,3339.5,3339.4,6.65387231]
[1722262759155,0.1468371,3339.5,3339.4,9.64841231]
[1722262759747,0.1468371,3339.5,3339.4,12.64841231]
[1722262759953,0.1468371,3339.5,3339.4,13.19841231]
[1722262760667,0.1468371,3339.5,3339.4,0.60491112]
[1722262760848,0.1468371,3339.5,3338.9,10.56794]
[1722262761192,3.1413071,3339.5,3338.9,2.99]
[1722262761549,0.1468371,3339.5,3338.9,2.99]
[1722262761760,2.99455,3339.4,3338.9,2.99]
[1722262761960,2.99455,3339.4,3337.7,2.643]
[1722262761961,2.995,3338.9,3337.7,2.643]
[1722262762203,2.99482,3339.1,3337.7,2.643]
[1722262762402,2.99481,3339.2,3338.0,2.99574]
[1722262762602,2.99491,3339.0,3338.1,3.594879]
[1722262762911,3.05401371,3339.3,3338.2,0.05990196]
[1722262763213,3.05401371,3339.3,3338.1,0.599169]
[1722262763214,2.4903,3339.3,3338.5,2.99535]
[1722262763393,2.4903,3339.3,3338.8,2.99507]
[1722262763903,2.4903,3339.3,3338.8,3.05496443]
[1722262764270,2.4903,3339.3,3338.9,2.99498]
[1722262764494,2.4903,3339.3,3338.9,2.99499]
[1722262764885,2.4903,3339.3,3338.8,2.99507]
[1722262765417,2.4903,3339.3,3338.9,0.05989446]
[1722262765721,0.1468371,3339.5,3339.2,2.99468]
[1722262765885,0.1468371,3339.5,3339.2,0.05988667]
[1722262766083,0.1468371,3339.5,3338.8,0.299507]
[1722262766300,0.1468371,3339.5,3338.8,3.294587]
[1722262766483,0.1468371,3339.5,3338.9,3.3244387]
[1722262766667,0.1468371,3339.5,3338.9,3.38431592]
[1722262766872,0.1468371,3339.5,3338.9,3.38432592]
[1722262767169,0.1468371,3339.5,3339.0,3.05472719]
[1722262767577,0.1468371,3339.5,3339.0,0.05988719]
[1722262767915,2.99478,3339.2,3338.4,2.99544]
[1722262768138,2.2563,3339.4,3338.4,2.99544]
[1722262768412,2.2563,3339.3,3338.1,0.599169]
[1722262768626,2.9951,3338.8,3337.9,2.99584]
[1722262768908,5.25148,3338.7,3337.8,2.99592]
[1722262769085,2.2563,3338.7,3337.9,2.99587]
[1722262769294,2.2563,3338.7,3338.0,0.610188]
[1722262769512,2.99539,3338.5,3338.0,0.01]
[1722262769673,2.99559,3338.3,3337.4,2.99629]
[1722262769873,2.4843,3338.5,3337.3,1.94]
[1722262770100,1.28597004,3338.4,3337.3,1.94]
[1722262770303,2.4843,3338.5,3337.5,2.643]
[1722262770487,2.4843,3338.5,3338.1,2.99565]
[1722262770692,2.4843,3338.5,3337.9,2.99585]
[1722262770693,2.4843,3338.5,3338.0,0.05990796]
[1722262771195,2.4843,3338.5,3338.0,3.05570796]
[1722262771411,2.4843,3338.5,3338.0,3.05562796]
[1722262771617,2.4843,3338.5,3338.0,3.3012828]
[1722262771773,2.4843,3338.5,3338.2,2.99554]
[1722262772115,2.2692,3339.2,3338.3,0.0599055]
[1722262772312,1.52478932,3339.1,3338.2,2.99554]
[1722262772498,1.52478932,3339.1,3338.0,3.3013328]
[1722262772499,2.99505,3338.9,3338.0,2.99577]
[1722262772699,2.99505,3338.9,3338.1,2.99571]
[1722262772898,2.99501,3338.9,3338.0,2.99574]
[1722262773069,2.99509,3338.8,3337.8,2.99592]
[1722262773275,5.47527,3338.6,3337.9,0.899195]
[1722262773468,5.47527,3338.6,3337.8,2.99592]
[1722262773675,2.48,3338.6,3337.8,2.99592]
[1722262774089,2.48,3338.6,3338.0,2.99574]
[1722262774290,2.48,3338.6,3337.9,2.99588]
[1722262774291,2.48,3338.6,3338.1,2.99568]
[1722262774484,2.48,3338.6,3337.9,2.99588]
[1722262774485,2.48,3338.6,3337.9,2.99582]
[1722262774716,2.48,3338.6,3338.0,0.299582]
[1722262774918,2.48,3338.6,3338.0,3.295372]
[1722262775110,2.48,3338.6,3338.1,2.99565]
[1722262775530,2.48,3338.6,3338.4,2.99544]
[1722262775731,2.48,3338.6,3338.2,2.99554]
[1722262775931,2.48,3338.6,3338.0,0.299582]
[1722262776138,2.48,3338.6,3338.2,2.99557]
[1722262776440,2.48,3338.6,3337.1,9.6]
[1722262776441,2.48,3338.6,3338.4,2.99536]
[1722262776762,2.48,3338.6,3338.4,2.99543]
[1722262777103,2.48,3338.6,3338.2,2.99556]
[1722262777334,2.48,3338.6,3338.2,3.594693]
[1722262777528,2.48,3338.6,3338.3,2.99551]